fUST/lending_fUST_20250822
["ID","MTS","AMOUNT","RATE_DAILY","PERIOD"]
[380569150,1755809444724,-480.0,0.00022191,3]
[380569152,1755809444736,-480.0,0.00022191,3]
[380569154,1755809444745,-480.0,0.00022191,3]
[380569156,1755809444755,-741.71,0.00022191,3]
[380569158,1755809444764,-1587.91,0.00022191,3]
[380569160,1755809444773,-544.7,0.00022191,3]
[380569162,1755809444783,-480.0,0.00022191,3]
[380569164,1755809444792,-480.0,0.00022191,3]
[380569166,1755809444802,-1257.84,0.00022191,3]
[380569168,1755809444812,-4128.72,0.00022191,3]
[380569170,1755809444821,-1686.08,0.00022191,3]
[380569172,1755809444831,-769.53,0.00022191,3]
[380569174,1755809444842,-585.17,0.00022191,3]
[380569176,1755809444851,-910.29,0.00022191,3]
[380569178,1755809444861,-3794.13,0.00022191,3]
[380569180,1755809444870,-480.0,0.00022191,3]
[380569182,1755809444879,-200.53375299,0.00022191,3]
[380569184,1755809444888,-480.0,0.00022191,3]
[380569186,1755809444899,-1160.77,0.00022191,3]
[380569188,1755809444911,-2439.77,0.00022191,3]
[380569190,1755809444920,-480.0,0.00022191,3]
[380569192,1755809444929,-480.0,0.00022191,3]
[380569194,1755809444938,-480.0,0.00022191,3]
[380569196,1755809444947,-480.0,0.00022191,3]
[380569198,1755809444957,-480.0,0.00022191,3]
[380569200,1755809444966,-480.0,0.00022191,3]
[380569202,1755809444976,-480.0,0.00022191,3]
[380569204,1755809444985,-480.0,0.00022191,3]
[380569206,1755809444995,-566.38,0.00022191,3]
[380569208,1755809445004,-1315.98,0.00022191,3]
[380569210,1755809445013,-974.69,0.00022191,3]
[380569212,1755809445022,-485.99,0.00022191,3]
[380569214,1755809445031,-160.0,0.00022191,3]
[380569216,1755809445041,-4690.85960717,0.000222,3]
[380569218,1755809445050,-528.88070896,0.000222,3]
[380569220,1755809445059,-160.0,0.000222,3]
[380569222,1755809445070,-2000.0,0.00022216,2]
[380569224,1755809445079,-1002.76678058,0.00022216,2]
[380569226,1755809445089,-2000.0,0.00022216,2]
[380569228,1755809445098,-2000.0,0.00022216,2]
[380569230,1755809445108,-2000.0,0.00022216,2]
[380569232,1755809445117,-973.0,0.00022327,2]
[380569234,1755809445127,-2154.0,0.00022327,2]
[380569236,1755809445137,-637.0,0.00022327,2]
[380569238,1755809445146,-460.339,0.00022357,2]
[380569240,1755809445160,-480.0,0.00022465,3]
[380569242,1755809445170,-480.0,0.00022465,3]
[380569244,1755809445179,-489.99,0.00022465,3]
[380569246,1755809445188,-480.0,0.00022465,3]
[380569248,1755809445198,-480.0,0.00022465,3]
[380569250,1755809445207,-480.0,0.00022465,3]
[380569252,1755809445216,-615.31,0.00022465,3]
[380569254,1755809445227,-480.0,0.00022465,3]
[380569256,1755809445236,-1411.74,0.00022465,3]
[380569258,1755809445246,-480.0,0.00022465,3]
[380569260,1755809445255,-786.74,0.00022465,3]
[380569262,1755809445264,-996.89,0.00022465,3]
[380569264,1755809445274,-574.81,0.00022465,3]
[380569266,1755809445284,-2527.71,0.00022465,3]
[380569268,1755809445293,-480.0,0.00022465,3]
[380569270,1755809445303,-480.0,0.00022465,3]
[380569272,1755809445313,-480.0,0.00022465,3]
[380569274,1755809445323,-741.71,0.00022465,3]
[380569276,1755809445332,-1587.91,0.00022465,3]
[380569278,1755809445341,-544.7,0.00022465,3]
[380569280,1755809445351,-480.0,0.00022465,3]
[380569282,1755809445360,-480.0,0.00022465,3]
[380569284,1755809445370,-1257.84,0.00022465,3]
[380569286,1755809445379,-4128.72,0.00022465,3]
[380569288,1755809445389,-1686.08,0.00022465,3]
[380569290,1755809445400,-769.53,0.00022465,3]
[380569293,1755809445413,-585.17,0.00022465,3]
[380569295,1755809445422,-910.29,0.00022465,3]
[380569297,1755809445432,-3794.13,0.00022465,3]
[380569300,1755809445442,-480.0,0.00022465,3]
[380569302,1755809445451,-480.0,0.00022465,3]
[380569304,1755809445461,-1160.77,0.00022465,3]
[380569306,1755809445470,-2439.77,0.00022465,3]
[380569308,1755809445480,-480.0,0.00022465,3]
[380569310,1755809445489,-480.0,0.00022465,3]
[380569312,1755809445499,-480.0,0.00022465,3]
[380569314,1755809445508,-480.0,0.00022465,3]
[380569316,1755809445518,-480.0,0.00022465,3]
[380569318,1755809445527,-480.0,0.00022465,3]
[380569320,1755809445536,-480.0,0.00022465,3]
[380569322,1755809445546,-480.0,0.00022465,3]
[380569324,1755809445556,-566.38,0.00022465,3]
[380569326,1755809445565,-1315.98,0.00022465,3]
[380569328,1755809445574,-974.69,0.00022465,3]
[380569330,1755809445583,-485.99,0.00022465,3]
[380569332,1755809445592,-360.0,0.00022496,2]
[380569334,1755809445601,-187.23706098,0.00022521,2]
[380569336,1755809445610,-500.0,0.00022521,2]
[380569338,1755809445619,-551.83599481,0.00022521,2]
[380569340,1755809445628,-1000.0,0.00022521,2]
[380569342,1755809445638,-463.80655881,0.00022521,2]
[380569344,1755809445647,-500.0,0.00022521,2]
[380569346,1755809445657,-501.83718057,0.00022521,2]
[380569348,1755809445667,-1000.0,0.00022521,2]
[380569350,1755809445676,-1003.6102621,0.00022521,2]
[380569352,1755809445686,-500.0,0.00022541,2]
[380569354,1755809445695,-500.0,0.00022541,2]
[380569356,1755809445705,-500.0,0.00022541,2]
[380569358,1755809445714,-500.0,0.00022541,2]
[380569360,1755809445723,-186.0,0.00022646,2]
[380569362,1755809445732,-186.0,0.00022695,2]
[380569364,1755809445742,-151.0,0.000227,7]
[380569366,1755809445751,-7854.04594234,0.00022706,2]
[380569368,1755809445760,-1100.0,0.00022708,2]
[380569369,1755809445770,-1110.27141104,0.00022721,2]
[380569371,1755809445779,-668.0139822,0.00022721,2]
[380569373,1755809445789,-306.23479692,0.00022721,2]
[380569375,1755809445798,-1000.0,0.00022721,2]
[380569377,1755809445807,-500.0,0.00022721,2]
[380569379,1755809445817,-500.0,0.00022721,2]
[380569381,1755809445826,-480.0,0.00022739,3]
[380569383,1755809445836,-480.0,0.00022739,3]
[380569385,1755809445846,-489.99,0.00022739,3]
[380569387,1755809445859,-480.0,0.00022739,3]
[380569389,1755809445868,-480.0,0.00022739,3]
[380569391,1755809445877,-262.70155481,0.00022739,3]
[380569393,1755809445886,-615.31,0.00022739,3]
[380569395,1755809445895,-480.0,0.00022739,3]
[380569397,1755809445909,-1411.74,0.00022739,3]
[380569399,1755809445919,-342.79221016,0.00022739,3]
[380569401,1755809445928,-786.74,0.00022739,3]
[380569402,1755809445937,-996.89,0.00022739,3]
[380569403,1755809445948,-574.81,0.00022739,3]
[380569404,1755809445957,-2527.71,0.00022739,3]
[380569405,1755809445967,-528.88070896,0.00022739,3]
[380569406,1755809445976,-480.0,0.00022739,3]
[380569407,1755809445985,-480.0,0.00022739,3]
[380569408,1755809445994,-480.0,0.00022739,3]
[380569409,1755809446004,-741.71,0.00022739,3]
[380569410,1755809446013,-1587.91,0.00022739,3]
[380569411,1755809446023,-544.7,0.00022739,3]
[380569413,1755809446031,-570.6679802,0.00022739,3]
[380569414,1755809446040,-480.0,0.00022739,3]
[380569415,1755809446049,-1257.84,0.00022739,3]
[380569416,1755809446059,-4128.72,0.00022739,3]
[380569417,1755809446069,-1686.08,0.00022739,3]
[380569418,1755809446078,-769.53,0.00022739,3]
[380569419,1755809446087,-585.17,0.00022739,3]
[380569420,1755809446096,-910.29,0.00022739,3]
[380569421,1755809446107,-3794.13,0.00022739,3]
[380569422,1755809446116,-480.0,0.00022739,3]
[380569423,1755809446125,-480.0,0.00022739,3]
[380569424,1755809446134,-1160.77,0.00022739,3]
[380569425,1755809446143,-2439.77,0.00022739,3]
[380569426,1755809446151,-480.0,0.00022739,3]
[380569427,1755809446161,-480.0,0.00022739,3]
[380569428,1755809446170,-480.0,0.00022739,3]
[380569429,1755809446179,-480.0,0.00022739,3]
[380569430,1755809446188,-480.0,0.00022739,3]
[380569431,1755809446198,-480.0,0.00022739,3]
[380569432,1755809446207,-317.76877687,0.00022739,3]
[380569433,1755809446216,-480.0,0.00022739,3]
[380569434,1755809446226,-566.38,0.00022739,3]
[380569436,1755809446235,-1315.98,0.00022739,3]
[380569438,1755809446244,-974.69,0.00022739,3]
[380569440,1755809446254,-485.99,0.00022739,3]
[380569442,1755809446263,-160.0,0.00022739,3]
[380569444,1755809446273,-2500.0,0.00022764,2]
[380569446,1755809446283,-2500.0,0.00022764,2]
[380569448,1755809446292,-1438.52392881,0.00022764,2]
[380569450,1755809446301,-2500.0,0.00022764,2]
[380569452,1755809446310,-5000.0,0.00022779,2]
[380569454,1755809446319,-187.23706098,0.00022822,2]
[380569456,1755809446328,-186.0,0.00022833,2]
[380569458,1755809446337,-151.0,0.000229,10]
[380569460,1755809446347,-186.0,0.00022932,2]
[380569462,1755809446356,-4242.14614403,0.00022948,2]
[380569464,1755809446366,-2200.0,0.00022958,2]
[380569466,1755809446375,-151.0,0.00022999,2]
[380569468,1755809446385,-160.0,0.00023,3]
[380569470,1755809446394,-844.19128999,0.00023,3]
[380569472,1755809446403,-216.95272161,0.00023,3]
[380569474,1755809446413,-232.28399145,0.00023,3]
[380569476,1755809446422,-480.0,0.00023013,3]
[380569478,1755809446432,-480.0,0.00023013,3]
[380569479,1755809446441,-489.99,0.00023013,3]
[380569481,1755809446450,-480.0,0.00023013,3]
[380569484,1755809446459,-480.0,0.00023013,3]
[380569485,1755809446469,-615.31,0.00023013,3]
[380569487,1755809446479,-480.0,0.00023013,3]
[380569490,1755809446489,-1411.74,0.00023013,3]
[380569491,1755809446498,-786.74,0.00023013,3]
[380569494,1755809446508,-996.89,0.00023013,3]
[380569496,1755809446518,-574.81,0.00023013,3]
[380569498,1755809446527,-2527.71,0.00023013,3]
[380569500,1755809446536,-480.0,0.00023013,3]
[380569504,1755809446574,-480.0,0.00023013,3]
[380569506,1755809446583,-480.0,0.00023013,3]
[380569507,1755809446593,-741.71,0.00023013,3]
[380569509,1755809446602,-1587.91,0.00023013,3]
[380569511,1755809446611,-544.7,0.00023013,3]
[380569513,1755809446620,-480.0,0.00023013,3]
[380569515,1755809446629,-1257.84,0.00023013,3]
[380569517,1755809446638,-4128.72,0.00023013,3]
[380569519,1755809446648,-1686.08,0.00023013,3]
[380569521,1755809446658,-769.53,0.00023013,3]
[380569523,1755809446667,-585.17,0.00023013,3]
[380569525,1755809446675,-910.29,0.00023013,3]
[380569527,1755809446685,-3794.13,0.00023013,3]
[380569528,1755809446694,-480.0,0.00023013,3]
[380569530,1755809446702,-480.0,0.00023013,3]
[380569532,1755809446712,-1160.77,0.00023013,3]
[380569534,1755809446720,-2439.77,0.00023013,3]
[380569536,1755809446730,-480.0,0.00023013,3]
[380569538,1755809446739,-480.0,0.00023013,3]
[380569540,1755809446749,-480.0,0.00023013,3]
[380569542,1755809446759,-355.15937321,0.00023013,3]
[380569544,1755809446768,-480.0,0.00023013,3]
[380569546,1755809446778,-480.0,0.00023013,3]
[380569548,1755809446787,-480.0,0.00023013,3]
[380569550,1755809446796,-566.38,0.00023013,3]
[380569552,1755809446805,-1315.98,0.00023013,3]
[380569553,1755809446814,-974.69,0.00023013,3]
[380569555,1755809446823,-485.99,0.00023013,3]
[380569557,1755809446833,-165.0,0.00023014,7]
[380569559,1755809446842,-460.0,0.00023044,2]
[380569561,1755809446851,-876.48468622,0.00023068,2]
[380569563,1755809446860,-1500.0,0.00023068,2]
[380569565,1755809446869,-168.0,0.00023077,2]
[380569567,1755809446879,-500.0,0.00023089,2]
[380569569,1755809446888,-271.79791669,0.00023089,2]
[380569571,1755809446898,-500.0,0.00023089,2]
[380569573,1755809446909,-576.47031468,0.00023089,2]
[380569575,1755809446919,-201.0,0.0002313,6]
[380569577,1755809446927,-168.0,0.00023149,2]
[380569578,1755809446937,-186.0,0.00023259,2]
[380569580,1755809446945,-480.0,0.00023287,3]
[380569582,1755809446956,-480.0,0.00023287,3]
[380569584,1755809446966,-489.99,0.00023287,3]
[380569586,1755809446975,-480.0,0.00023287,3]
[380569588,1755809446984,-480.0,0.00023287,3]
[380569589,1755809446994,-615.31,0.00023287,3]
[380569591,1755809447004,-284.37432875,0.00023287,3]
[380569593,1755809447013,-1411.74,0.00023287,3]
[380569595,1755809447022,-786.74,0.00023287,3]
[380569597,1755809447033,-996.89,0.00023287,3]
[380569599,1755809447042,-574.81,0.00023287,3]
[380569601,1755809447051,-2527.71,0.00023287,3]
[380569602,1755809447060,-480.0,0.00023287,3]
[380569604,1755809447069,-480.0,0.00023287,3]
[380569606,1755809447078,-480.0,0.00023287,3]
[380569608,1755809447087,-741.71,0.00023287,3]
[380569610,1755809447097,-1587.91,0.00023287,3]
[380569612,1755809447107,-544.7,0.00023287,3]
[380569614,1755809447116,-551.75163119,0.00023287,3]
[380569616,1755809447125,-1257.84,0.00023287,3]
[380569618,1755809447134,-4128.72,0.00023287,3]
[380569619,1755809447144,-1686.08,0.00023287,3]
[380569621,1755809447153,-769.53,0.00023287,3]
[380569623,1755809447162,-585.17,0.00023287,3]
[380569625,1755809447172,-910.29,0.00023287,3]
[380569627,1755809447182,-3794.13,0.00023287,3]
[380569629,1755809447191,-480.0,0.00023287,3]
[380569631,1755809447200,-480.0,0.00023287,3]
[380569633,1755809447209,-1160.77,0.00023287,3]
[380569635,1755809447219,-2439.77,0.00023287,3]
[380569637,1755809447228,-164.08813911,0.00023287,3]
[380569639,1755809447238,-480.0,0.00023287,3]
[380569640,1755809447247,-480.0,0.00023287,3]
[380569642,1755809447257,-480.0,0.00023287,3]
[380569644,1755809447266,-480.0,0.00023287,3]
[380569646,1755809447276,-472.11081917,0.00023287,3]
[380569648,1755809447286,-566.38,0.00023287,3]
[380569650,1755809447295,-1315.98,0.00023287,3]
[380569652,1755809447304,-974.69,0.00023287,3]
[380569654,1755809447313,-485.99,0.00023287,3]
[380569656,1755809447323,-5707.08,0.000233,7]
[380569658,1755809447333,-151.0,0.000233,9]
[380569660,1755809447342,-376.00439007,0.000233,7]
[380569662,1755809447352,-528.88070896,0.000233,7]
[380569663,1755809447361,-645.0,0.000233,2]
[380569665,1755809447370,-160.0,0.000233,7]
[380569667,1755809447381,-3000.0,0.00023312,2]
[380569669,1755809447390,-1500.0,0.00023312,2]
[380569671,1755809447400,-3000.0,0.00023312,2]
[380569673,1755809447410,-151.0,0.000234,6]
[380569675,1755809447419,-407.73,0.000234,7]
[380569677,1755809447428,-2276.2,0.000234,7]
[380569678,1755809447437,-42250.72,0.000234,2]
[380569680,1755809447446,-587.0,0.000234,2]
[380569682,1755809447456,-332.39229057,0.00023561,3]
[380569684,1755809447465,-200.0,0.00023561,2]
[380569686,1755809447475,-200.0,0.00023561,2]
[380569688,1755809447484,-200.0,0.00023561,2]
[380569690,1755809447493,-200.0,0.00023561,2]
[380569692,1755809447502,-200.0,0.00023561,2]
[380569693,1755809447511,-200.0,0.00023561,2]
[380569695,1755809447520,-200.0,0.00023561,2]
[380569697,1755809447529,-200.0,0.00023561,2]
[380569699,1755809447538,-200.0,0.00023561,2]
[380569701,1755809447547,-200.0,0.00023561,2]
[380569703,1755809447556,-332.12173829,0.00023561,2]
[380569705,1755809447565,-480.0,0.00023561,3]
[380569707,1755809447574,-489.99,0.00023561,3]
[380569709,1755809447583,-480.0,0.00023561,3]
[380569710,1755809447592,-480.0,0.00023561,3]
[380569712,1755809447601,-615.31,0.00023561,3]
[380569714,1755809447611,-1411.74,0.00023561,3]
[380569716,1755809447620,-786.74,0.00023561,3]
[380569718,1755809447630,-996.89,0.00023561,3]
[380569720,1755809447640,-574.81,0.00023561,3]
[380569722,1755809447650,-2527.71,0.00023561,3]
[380569724,1755809447659,-480.0,0.00023561,3]
[380569726,1755809447668,-480.0,0.00023561,3]
[380569728,1755809447677,-480.0,0.00023561,3]
[380569730,1755809447686,-741.71,0.00023561,3]
[380569732,1755809447695,-1587.91,0.00023561,3]
[380569733,1755809447704,-544.7,0.00023561,3]
[380569735,1755809447713,-1257.84,0.00023561,3]
[380569737,1755809447723,-4128.72,0.00023561,3]
[380569739,1755809447733,-1686.08,0.00023561,3]
[380569741,1755809447742,-769.53,0.00023561,3]
[380569743,1755809447751,-585.17,0.00023561,3]
[380569745,1755809447761,-910.29,0.00023561,3]
[380569746,1755809447770,-3794.13,0.00023561,3]
[380569748,1755809447779,-480.0,0.00023561,3]
[380569750,1755809447788,-480.0,0.00023561,3]
[380569752,1755809447798,-1160.77,0.00023561,3]
[380569754,1755809447807,-2439.77,0.00023561,3]
[380569756,1755809447817,-480.0,0.00023561,3]
[380569758,1755809447826,-480.0,0.00023561,3]
[380569760,1755809447836,-480.0,0.00023561,3]
[380569762,1755809447845,-480.0,0.00023561,3]
[380569764,1755809447854,-566.38,0.00023561,3]
[380569765,1755809447864,-1315.98,0.00023561,3]
[380569767,1755809447873,-974.69,0.00023561,3]
[380569769,1755809447883,-485.99,0.00023561,3]
[380569771,1755809447892,-168.0,0.00023563,2]
[380569773,1755809447901,-560.0,0.00023592,2]
[380569775,1755809447916,-152.582311,0.00023606,8]
[380569777,1755809447926,-2000.0,0.00023616,2]
[380569779,1755809447935,-168.0,0.00023624,2]
[380569781,1755809447945,-2351.0,0.00023625,2]
[380569783,1755809447955,-7854.04594234,0.00023642,2]
[380569785,1755809447964,-168.0,0.00023722,2]
[380569787,1755809447974,-151.0,0.000238,6]
[380569788,1755809447983,-152.582311,0.000238,10]
[380569790,1755809447993,-1100.0,0.00023804,2]
[380569792,1755809448002,-12690.45384448,0.00023835,3]
[380569794,1755809448011,-480.0,0.00023835,3]
[380569796,1755809448021,-489.99,0.00023835,3]
[380569798,1755809448032,-480.0,0.00023835,3]
[380569800,1755809448041,-480.0,0.00023835,3]
[380569801,1755809448051,-615.31,0.00023835,3]
[380569803,1755809448061,-1411.74,0.00023835,3]
[380569805,1755809448070,-786.74,0.00023835,3]
[380569807,1755809448080,-996.89,0.00023835,3]
[380569809,1755809448090,-574.81,0.00023835,3]
[380569811,1755809448099,-2527.71,0.00023835,3]
[380569813,1755809448109,-480.0,0.00023835,3]
[380569815,1755809448118,-480.0,0.00023835,3]
[380569817,1755809448128,-480.0,0.00023835,3]
[380569819,1755809448137,-741.71,0.00023835,3]
[380569821,1755809448146,-1587.91,0.00023835,3]
[380569823,1755809448155,-544.7,0.00023835,3]
[380569825,1755809448165,-1257.84,0.00023835,3]
[380569827,1755809448174,-4128.72,0.00023835,3]
[380569828,1755809448183,-1686.08,0.00023835,3]
[380569830,1755809448193,-769.53,0.00023835,3]
[380569832,1755809448203,-585.17,0.00023835,3]
[380569834,1755809448212,-910.29,0.00023835,3]
[380569836,1755809448223,-3794.13,0.00023835,3]
[380569838,1755809448233,-480.0,0.00023835,3]
[380569840,1755809448242,-480.0,0.00023835,3]
[380569842,1755809448252,-1160.77,0.00023835,3]
[380569844,1755809448261,-2439.77,0.00023835,3]
[380569846,1755809448271,-480.0,0.00023835,3]
[380569847,1755809448280,-480.0,0.00023835,3]
[380569849,1755809448291,-480.0,0.00023835,3]
[380569851,1755809448300,-480.0,0.00023835,3]
[380569854,1755809448310,-566.38,0.00023835,3]
[380569855,1755809448320,-1315.98,0.00023835,3]
[380569857,1755809448330,-974.69,0.00023835,3]
[380569859,1755809448340,-485.99,0.00023835,3]
[380569861,1755809448350,-2285.55955501,0.0002386,2]
[380569863,1755809448359,-3500.0,0.0002386,2]
[380569865,1755809448368,-168.0,0.00023888,2]
[380569867,1755809448378,-168.0,0.000239,2]
[380569869,1755809448391,-151.0,0.000239,5]
[380569871,1755809448402,-168.0,0.00023975,2]
[380569873,1755809448411,-844.19128999,0.00024,7]
[380569875,1755809448421,-216.95272161,0.00024,7]
[380569877,1755809448430,-232.28399145,0.00024,7]
[380569879,1755809448440,-152.582311,0.00024064,3]
[380569881,1755809448450,-168.0,0.00024065,2]
[380569883,1755809448459,-480.0,0.00024109,3]
[380569884,1755809448468,-489.99,0.00024109,3]
[380569886,1755809448478,-480.0,0.00024109,3]
[380569888,1755809448489,-525.49204868,0.00024109,3]
[380569890,1755809448498,-615.31,0.00024109,3]
[380569892,1755809448508,-1411.74,0.00024109,3]
[380569894,1755809448517,-786.74,0.00024109,3]
[380569896,1755809448526,-8365.0,0.00024109,4]
[380569898,1755809448536,-996.89,0.00024109,3]
[380569900,1755809448545,-574.81,0.00024109,3]
[380569902,1755809448555,-2527.71,0.00024109,3]
[380569903,1755809448564,-480.0,0.00024109,3]
[380569905,1755809448574,-480.0,0.00024109,3]
[380569907,1755809448583,-480.0,0.00024109,3]
[380569909,1755809448592,-741.71,0.00024109,3]
[380569911,1755809448602,-1587.91,0.00024109,3]
[380569913,1755809448611,-544.7,0.00024109,3]
[380569915,1755809448621,-1257.84,0.00024109,3]
[380569917,1755809448630,-4128.72,0.00024109,3]
[380569919,1755809448639,-1686.08,0.00024109,3]
[380569921,1755809448649,-769.53,0.00024109,3]
[380569923,1755809448658,-585.17,0.00024109,3]
[380569925,1755809448668,-910.29,0.00024109,3]
[380569927,1755809448677,-3794.13,0.00024109,3]
[380569929,1755809448687,-480.0,0.00024109,3]
[380569930,1755809448697,-480.0,0.00024109,3]
[380569931,1755809448706,-1160.77,0.00024109,3]
[380569932,1755809448716,-2439.77,0.00024109,3]
[380569933,1755809448726,-480.0,0.00024109,3]
[380569934,1755809448735,-480.0,0.00024109,3]
[380569935,1755809448746,-480.0,0.00024109,3]
[380569936,1755809448755,-480.0,0.00024109,3]
[380569937,1755809448765,-566.38,0.00024109,3]
[380569938,1755809448774,-1315.98,0.00024109,3]
[380569939,1755809448784,-974.69,0.00024109,3]
[380569940,1755809448794,-485.99,0.00024109,3]
[380569941,1755809448803,-168.0,0.00024125,2]
[380569942,1755809448813,-660.0,0.0002414,2]
[380569943,1755809448822,-207.0,0.0002415,2]
[380569944,1755809448832,-2818.33680489,0.00024152,2]
[380569945,1755809448841,-151.0,0.00024152,7]
[380569946,1755809448851,-151.0,0.00024152,7]
[380569947,1755809448860,-151.0,0.00024152,7]
[380569948,1755809448869,-151.0,0.00024152,7]
[380569949,1755809448878,-151.0,0.00024152,7]
[380569950,1755809448888,-151.0,0.00024152,7]
[380569951,1755809448898,-2500.0,0.00024164,2]
[380569953,1755809448909,-168.0,0.0002426,2]
[380569956,1755809448920,-1000.0,0.000243,2]
[380569957,1755809448929,-391.97789172,0.00024353,2]
[380569959,1755809448939,-800.0,0.00024359,2]
[380569962,1755809448949,-151.0,0.00024368,2]
[380569964,1755809448959,-480.0,0.00024383,3]
[380569965,1755809448969,-489.99,0.00024383,3]
[380569967,1755809448979,-480.0,0.00024383,3]
[380569970,1755809448990,-615.31,0.00024383,3]
[380569972,1755809449000,-1411.74,0.00024383,3]
[380569973,1755809449010,-786.74,0.00024383,3]
[380569976,1755809449019,-996.89,0.00024383,3]
[380569978,1755809449029,-574.81,0.00024383,3]
[380569980,1755809449039,-2527.71,0.00024383,3]
[380569981,1755809449049,-480.0,0.00024383,3]
[380569984,1755809449059,-480.0,0.00024383,3]
[380569986,1755809449068,-480.0,0.00024383,3]
[380569987,1755809449078,-741.71,0.00024383,3]
[380569989,1755809449088,-1587.91,0.00024383,3]
[380569992,1755809449099,-544.7,0.00024383,3]
[380569994,1755809449109,-1257.84,0.00024383,3]
[380569996,1755809449119,-4128.72,0.00024383,3]
[380569998,1755809449129,-1686.08,0.00024383,3]
[380570000,1755809449138,-769.53,0.00024383,3]
[380570002,1755809449148,-585.17,0.00024383,3]
[380570004,1755809449158,-910.29,0.00024383,3]
[380570006,1755809449167,-3794.13,0.00024383,3]
[380570007,1755809449177,-480.0,0.00024383,3]
[380570010,1755809449187,-480.0,0.00024383,3]
[380570012,1755809449198,-1160.77,0.00024383,3]
[380570014,1755809449208,-2439.77,0.00024383,3]
[380570016,1755809449218,-576.3103881,0.00024383,3]
[380570018,1755809449229,-480.0,0.00024383,3]
[380570020,1755809449239,-422.61818444,0.00024383,3]
[380570021,1755809449249,-449.21721762,0.00024383,3]
[380570023,1755809449259,-566.38,0.00024383,3]
[380570025,1755809449269,-1315.98,0.00024383,3]
[380570026,1755809449279,-974.69,0.00024383,3]
[380570029,1755809449288,-485.99,0.00024383,3]
[380570030,1755809449298,-800.0,0.00024398,2]
[380570033,1755809449308,-151.0,0.000244,6]
[380570035,1755809449317,-151.0,0.000244,6]
[380570037,1755809449327,-1131.32184527,0.00024408,2]
[380570039,1755809449337,-800.0,0.00024417,2]
[380570041,1755809449347,-800.0,0.00024439,2]
[380570043,1755809449356,-800.0,0.00024463,2]
[380570045,1755809449366,-800.0,0.00024488,2]
[380570047,1755809449376,-168.0,0.00024494,2]
[380570049,1755809449385,-800.0,0.00024502,2]
[380570051,1755809449394,-800.0,0.00024515,2]
[380570052,1755809449404,-800.0,0.00024545,2]
[380570054,1755809449414,-800.0,0.00024561,2]
[380570057,1755809449423,-800.0,0.00024562,2]
[380570058,1755809449433,-7854.04594234,0.00024577,2]
[380570061,1755809449443,-5707.08,0.000246,7]
[380570063,1755809449453,-2276.2,0.000246,7]
[380570065,1755809449463,-321.685964,0.00024604,2]
[380570067,1755809449472,-152.582311,0.00024631,3]
[380570069,1755809449482,-495.65,0.00024632,2]
[380570070,1755809449492,-275.89046932,0.00024657,3]
[380570073,1755809449502,-489.99,0.00024657,3]
[380570075,1755809449512,-480.0,0.00024657,3]
[380570077,1755809449522,-151.0,0.00024657,7]